bitfinex/quotes_SOLUSD_20250609
["timestamp","ask_amount","ask_price","bid_price","bid_amount"]
[1749503743653,10.80789716,157.89,157.85,62.48719651]
[1749503743829,10.80789716,157.89,157.86,19.32719651]
[1749503745638,4.474222,157.89,157.87,19.32719651]
[1749503745851,4.474222,157.89,157.88,43.1]
[1749503746052,4.474222,157.89,157.88,43.8]
[1749503746670,10.80774533,157.89,157.88,43.8]
[1749503747671,4.474222,157.89,157.88,43.8]
[1749503748249,4.474222,157.89,157.88,81.77684537]
[1749503748874,4.474222,157.89,157.88,88.11076986]
[1749503749591,4.474222,157.89,157.88,88.395093]
[1749503750350,4.474222,157.89,157.88,114.395093]
[1749503750552,4.474222,157.89,157.88,88.395093]
[1749503751148,13.30310102,157.93,157.92,37.97684537]
[1749503751352,13.30310102,157.93,157.92,93.65684537]
[1749503752082,13.30310102,157.93,157.92,99.98916553]
[1749503752770,13.30310102,157.93,157.92,93.65684537]
[1749503755775,13.30310102,157.93,157.92,74.32964886]
[1749503756278,13.30310102,157.93,157.92,55.68]
[1749503756488,13.30310102,157.93,157.92,43.04]
[1749503757197,13.30310102,157.93,157.91,19.32719651]
[1749503757499,13.30310102,157.93,157.92,55.66]
[1749503757683,13.30310102,157.93,157.91,19.32719651]
[1749503757885,13.30310102,157.93,157.92,80.99684537]
[1749503758203,13.30310102,157.93,157.92,43.02]
[1749503759020,13.30310102,157.93,157.91,12.62]
[1749503759179,13.30310102,157.93,157.92,43.02]
[1749503759875,19.63502022,157.93,157.92,43.02]
[1749503760485,13.30310102,157.93,157.92,43.02]
[1749503760695,32.63029753,157.93,157.92,43.02]
[1749503761002,38.96221673,157.93,157.92,43.02]
[1749503761371,32.63029753,157.93,157.92,43.02]
[1749503761578,13.30310102,157.93,157.92,43.02]
[1749503763507,32.63029753,157.93,157.92,43.02]
[1749503764475,32.63029753,157.93,157.92,43.0]
[1749503764676,38.96231053,157.93,157.92,43.0]
[1749503764872,38.96231053,157.93,157.91,12.62]
[1749503765172,21.18631402,157.93,157.91,43.0]
[1749503765376,19.32719651,157.92,157.91,43.0]
[1749503765598,6.33242143,157.92,157.91,43.0]
[1749503765794,25.65961794,157.92,157.91,43.0]
[1749503766784,6.33242143,157.92,157.91,43.0]
[1749503767195,14.85430102,157.93,157.91,43.0]
[1749503767507,19.32719651,157.92,157.91,43.0]
[1749503768484,13.30310102,157.93,157.91,43.0]
[1749503768708,13.30310102,157.93,157.91,68.65979958]
[1749503768911,13.30310102,157.93,157.92,19.32719651]
[1749503769203,13.30310102,157.93,157.92,37.97684537]
[1749503769418,13.30310102,157.93,157.92,38.26116851]
[1749503769581,13.30310102,157.93,157.92,44.30916553]
[1749503769781,13.30310102,157.93,157.91,32.33257483]
[1749503769980,13.30310102,157.93,157.92,42.98]
[1749503771685,13.30310102,157.93,157.92,49.31232016]
[1749503771895,13.30310102,157.93,157.92,87.28916553]
[1749503772710,13.30310102,157.93,157.92,87.57348867]
[1749503772882,13.30310102,157.93,157.92,106.90068518]
[1749503774296,9.84295697,157.93,157.92,106.90068518]
[1749503774896,8.33333333,157.97,157.96,44.64964886]
[1749503775101,8.33333333,157.97,157.96,106.93684537]
[1749503775876,8.33333333,157.97,157.96,113.267562]
[1749503776686,8.33333333,157.97,157.96,93.94036549]
[1749503777013,8.33333333,157.97,157.96,113.267562]
[1749503778303,8.33333333,157.97,157.96,68.96]
[1749503778507,8.33333333,157.97,157.96,42.96]
[1749503779209,8.33333333,157.97,157.94,19.32719651]
[1749503779394,8.33333333,157.97,157.95,42.96]
[1749503779595,8.33333333,157.97,157.96,42.96]
[1749503780293,14.66364921,157.97,157.96,42.94]
[1749503780479,14.66364921,157.97,157.94,19.32719651]
[1749503780685,8.33333333,157.97,157.94,19.32719651]
[1749503780885,8.33333333,157.97,157.95,42.94]
[1749503781084,8.33333333,157.97,157.95,62.26719651]
[1749503781324,8.33333333,157.97,157.95,42.94]
[1749503781525,8.33333333,157.97,157.95,62.26719651]
[1749503782013,8.33333333,157.97,157.95,42.94]
[1749503782508,8.33333333,157.97,157.95,62.26719651]
[1749503782998,8.33333333,157.97,157.95,68.59814193]
[1749503784094,8.33333333,157.97,157.95,55.5]
[1749503784485,8.33333333,157.97,157.95,81.1582138]
[1749503784687,8.33333333,157.97,157.96,19.32719651]
[1749503784890,8.33333333,157.97,157.96,37.97684537]
[1749503786193,8.33333333,157.97,157.96,24.98036549]
[1749503786513,8.33333333,157.97,157.96,44.307562]
[1749503786699,8.33333333,157.97,157.96,6.33071663]
[1749503787021,8.33333333,157.97,157.96,25.65791314]
[1749503787519,8.33333333,157.97,157.96,6.33071663]
[1749503787727,8.33333333,157.97,157.95,55.5]
[1749503787894,8.33333333,157.97,157.95,81.15826604]
[1749503788402,8.33333333,157.97,157.95,55.5]
[1749503788640,8.33333333,157.97,157.95,74.82719651]
[1749503789119,8.33333333,157.97,157.95,31.88719651]
[1749503789331,8.33333333,157.97,157.96,42.92]
[1749503792823,33.99092952,157.97,157.95,12.56]
[1749503793222,20.99009651,157.96,157.95,12.56]
[1749503793815,1.6629,157.96,157.95,12.56]
[1749503794010,20.99009651,157.96,157.95,12.56]
[1749503794212,27.32081314,157.96,157.95,12.56]
[1749503795443,7.99361663,157.96,157.95,12.56]
[1749503795740,27.32081314,157.96,157.95,12.56]
[1749503796303,7.99361663,157.96,157.91,42.92]
[1749503796709,19.32719651,157.94,157.91,42.92]
[1749503797802,19.32719651,157.93,157.91,42.92]
[1749503799227,7.99367655,157.96,157.91,42.92]
[1749503799435,19.32719651,157.94,157.91,42.92]
[1749503799643,19.32719651,157.95,157.91,68.57987074]
[1749503800138,19.32719651,157.95,157.91,42.92]
[1749503800916,19.32719651,157.94,157.91,42.92]
[1749503801317,19.32719651,157.93,157.91,42.92]
[1749503801520,1.6629,157.96,157.91,42.92]
[1749503801850,1.6629,157.96,157.91,68.57983124]
[1749503802215,19.32719651,157.95,157.91,49.25263473]
[1749503802721,19.32719651,157.95,157.92,12.56]
[1749503803446,25.65876621,157.94,157.92,12.56]
[1749503803617,6.3315697,157.94,157.92,12.56]
[1749503803817,19.32719651,157.94,157.92,12.56]
[1749503804314,19.32719651,157.93,157.92,12.56]
[1749503804743,19.32719651,157.93,157.92,55.46]
[1749503805321,19.32719651,157.93,157.92,12.56]
[1749503805522,19.32719651,157.93,157.92,55.46]
[1749503805835,25.65911571,157.93,157.92,55.46]
[1749503806322,25.65911571,157.93,157.92,12.56]
[1749503806523,1.6629,157.96,157.92,55.46]
[1749503806724,19.32719651,157.95,157.92,55.46]
[1749503807840,7.99362939,157.96,157.92,55.46]
[1749503808024,19.32719651,157.93,157.92,55.46]
[1749503808642,7.99362939,157.96,157.92,55.46]
[1749503808944,19.32719651,157.94,157.92,55.46]
[1749503810543,19.32719651,157.95,157.92,55.46]
[1749503812242,8.33333333,157.97,157.94,19.32719651]
[1749503812441,8.33333333,157.97,157.95,62.22719651]
[1749503812633,8.33333333,157.97,157.96,19.32719651]
[1749503812841,8.33333333,157.97,157.96,127.87684537]
[1749503813025,8.33333333,157.97,157.96,37.97684537]
[1749503813833,8.33333333,157.97,157.96,44.307562]
[1749503815544,8.33333333,157.97,157.94,62.46]
[1749503815727,8.33333333,157.97,157.95,55.4]
[1749503815928,27.66052984,157.97,157.95,55.4]
[1749503816244,27.66052984,157.97,157.96,42.88]
[1749503816642,16.16981504,157.97,157.96,42.88]
[1749503816841,29.16662984,157.97,157.96,42.88]
[1749503817357,35.49694572,157.97,157.96,42.88]
[1749503819136,29.16662984,157.97,157.96,42.88]
[1749503819851,9.83943333,157.97,157.96,42.88]
[1749503820240,29.16662984,157.97,157.96,42.88]
[1749503820935,9.83943333,157.97,157.96,42.88]
[1749503821137,29.16662984,157.97,157.96,42.88]
[1749503821750,9.83943333,157.97,157.96,42.88]
[1749503822168,8.33333333,157.97,157.96,42.88]
[1749503822849,27.66052984,157.97,157.96,42.88]
[1749503823053,8.33333333,157.97,157.96,42.88]
[1749503824761,27.66052984,157.97,157.96,42.88]
[1749503825058,33.99084572,157.97,157.95,12.52]
[1749503825260,19.32719651,157.96,157.95,55.38]
[1749503825461,20.98899651,157.96,157.95,55.38]
[1749503826140,20.98899651,157.96,157.95,12.52]
[1749503826339,20.98899651,157.96,157.95,55.38]
[1749503827135,27.31971314,157.96,157.95,55.38]
[1749503827356,27.31971314,157.96,157.95,12.52]
[1749503827544,27.31971314,157.96,157.94,42.86]
[1749503827744,1.6618,157.96,157.94,42.86]
[1749503827949,19.32719651,157.95,157.94,42.86]
[1749503829256,25.65831395,157.95,157.94,42.86]
[1749503833649,19.32719651,157.95,157.94,42.86]
[1749503834765,20.98899651,157.96,157.94,42.86]
[1749503836456,1.6618,157.96,157.94,42.86]
[1749503836673,19.32719651,157.99,157.94,81.03851168]
[1749503836845,19.32719651,157.98,157.94,55.38]
[1749503837047,6.32958536,157.99,157.94,55.38]
[1749503837245,19.32719651,157.95,157.94,55.38]
[1749503837546,25.65831395,157.95,157.94,12.52]
[1749503837757,25.65831395,157.95,157.94,55.38]
[1749503838167,25.65831395,157.95,157.94,12.52]
[1749503838480,25.65831395,157.95,157.94,55.38]
[1749503838779,6.33111744,157.95,157.94,55.38]
[1749503839071,25.65831395,157.95,157.94,55.38]
[1749503839280,6.33111744,157.95,157.94,42.86]
[1749503839459,19.32719651,157.95,157.94,42.86]
[1749503839774,19.32719651,157.95,157.92,12.5]
[1749503839961,4.7276372,157.98,157.94,42.86]
[1749503840555,0.14216157,157.98,157.94,42.86]
[1749503840763,4.87016962,157.98,157.94,42.86]
[1749503841169,19.32719651,157.95,157.94,42.86]
[1749503841570,25.65831395,157.95,157.94,42.86]
[1749503843482,25.65831395,157.95,157.89,25.66064891]
[1749503843777,19.32719651,157.94,157.9,55.34]
[1749503844859,25.65886092,157.94,157.9,55.34]
[1749503845172,6.33166441,157.94,157.9,55.34]
[1749503845378,25.65886092,157.94,157.9,55.34]
[1749503845779,19.32719651,157.93,157.91,42.84]
[1749503846187,19.32719651,157.92,157.9,12.5]
[1749503846485,19.32719651,157.92,157.91,42.84]
[1749503846856,19.32719651,157.93,157.91,42.84]
[1749503847057,7.86605451,157.94,157.92,42.84]
[1749503847251,27.19325102,157.94,157.92,42.84]
[1749503847467,27.19325102,157.94,157.93,42.84]
[1749503848077,20.86159651,157.94,157.93,42.84]
[1749503848261,1.5344,157.94,157.93,42.84]
[1749503848767,27.1931148,157.94,157.93,42.84]
[1749503849354,41.82563962,157.98,157.93,42.84]
[1749503849355,19.32719651,157.96,157.93,42.84]
[1749503849863,1.6454,157.98,157.93,68.49910302]
[1749503850081,1.6454,157.98,157.94,19.32719651]
[1749503850561,1.6454,157.98,157.95,19.32719651]
[1749503850882,1.6454,157.98,157.93,49.17190651]
[1749503850883,1.11257,158.0,157.96,74.66719651]
[1749503851075,20.43976651,158.0,157.96,74.66719651]
[1749503851579,1.11257,158.0,157.96,80.99777343]
[1749503851959,1.11257,158.0,157.97,19.32719651]
[1749503852561,1.11257,158.0,157.99,37.97684537]
[1749503852756,1.11257,158.0,157.99,61.48964886]
[1749503853380,1.11257,158.0,157.99,18.64964886]
[1749503853583,1.11257,158.0,157.99,73.96964886]
[1749503853795,1.11257,158.0,157.99,99.62635989]
[1749503853993,1.11257,158.0,157.99,93.29684537]
[1749503854289,1.11257,158.0,157.99,73.96964886]
[1749503854484,1.11257,158.0,157.99,93.29684537]
[1749503855192,1.11257,158.0,157.99,99.62635989]
[1749503855360,1.11257,158.0,157.99,189.52635989]
[1749503855768,4.72492265,158.07,158.03,18.64964886]
[1749503855965,21.68753579,158.1,158.06,19.32719651]
[1749503856173,2.36033928,158.11,158.07,12.5]
[1749503856472,2.36023779,158.1,158.08,42.82]
[1749503856667,6.32471064,158.11,158.08,42.82]
[1749503856979,9.54444777,158.12,158.08,42.82]
[1749503857185,9.54444776,158.12,158.08,42.82]
[1749503857477,2.36013008,158.11,158.08,42.82]
[1749503857694,19.32719651,158.09,158.08,42.82]
[1749503859068,2.35653038,158.11,158.08,42.82]
[1749503859268,19.32719651,158.09,158.08,42.82]
[1749503859703,20.93579651,158.09,158.08,42.82]
[1749503860492,20.93579651,158.09,158.03,18.64964886]
[1749503860701,19.32719651,158.07,158.06,42.8]
[1749503860884,1.6086,158.09,158.06,42.8]
[1749503861063,19.32719651,158.07,158.06,42.8]
[1749503861266,6.32631112,158.07,158.04,12.5]
[1749503861469,6.32524662,158.1,158.05,42.8]
[1749503861693,6.32524662,158.1,158.06,18.64964886]
[1749503861893,0.8600173,158.12,158.09,19.32719651]
[1749503862098,8.33333333,158.16,158.15,6.0458]
[1749503862392,6.31871603,158.26,158.16,18.64964886]
[1749503862588,19.32719651,158.26,158.21,19.32719651]
[1749503862767,19.32719651,158.27,158.22,62.12719651]
[1749503862963,6.31672035,158.31,158.23,12.5]
[1749503863164,6.31980928,158.24,158.21,42.8]
[1749503863380,6.31980928,158.24,158.19,42.8]
[1749503863381,28.77047473,158.22,158.19,42.8]
[1749503863590,6.31917822,158.25,158.19,42.8]
[1749503863764,28.77047473,158.23,158.19,42.8]
[1749503863972,28.77047473,158.22,158.19,42.8]
[1749503864188,6.31917822,158.25,158.15,48.13051776]
[1749503864371,28.77047473,158.25,158.19,41.25047473]
[1749503864576,28.77047473,158.25,158.2,42.78]
[1749503864766,28.77047473,158.25,158.2,71.55047473]
[1749503865175,28.77047473,158.25,158.2,77.87152258]
[1749503865372,28.77047473,158.27,158.22,28.77047473]
[1749503866181,6.31751847,158.29,158.22,28.77047473]
[1749503866496,28.77047473,158.23,158.2,42.78]
[1749503866701,22.11131466,158.29,158.2,42.78]
[1749503866883,28.77047473,158.23,158.2,42.78]
[1749503867076,28.77047473,158.22,158.2,42.78]
[1749503867281,28.77047473,158.21,158.2,42.78]
[1749503867583,28.77047473,158.21,158.19,12.48]
[1749503867788,28.77047473,158.21,158.2,34.42666667]
[1749503868577,1.599,158.24,158.2,34.42666667]
[1749503868892,28.77047473,158.21,158.2,42.76]
[1749503869086,28.77047473,158.21,158.16,47.42012359]
[1749503869292,6.32111251,158.2,158.16,47.42012359]
[1749503869676,6.32111251,158.2,158.17,0.5]
[1749503869877,35.09158724,158.2,158.18,42.74]
[1749503870082,35.09158724,158.2,158.16,18.64964886]
[1749503870083,28.77047473,158.19,158.16,18.64964886]
[1749503870311,28.77047473,158.17,158.15,12.44]
[1749503870481,28.77047473,158.17,158.16,42.74]
[1749503870979,22.12389379,158.2,158.16,42.74]
[1749503871180,28.77047473,158.17,158.16,42.74]
[1749503871398,35.09312158,158.17,158.16,42.74]
[1749503871610,35.09312158,158.17,158.15,12.44]
[1749503871784,28.77047473,158.16,158.15,42.74]
[1749503872108,28.77047473,158.16,158.13,42.74]
[1749503872610,28.77047473,158.15,158.13,42.74]
[1749503872802,6.32264685,158.17,158.13,42.74]
[1749503873007,28.77047473,158.15,158.13,42.74]
[1749503873186,28.77047473,158.14,158.13,42.74]
[1749503873383,28.77047473,158.14,158.1,12.44]
[1749503873384,35.09398554,158.14,158.1,12.44]
[1749503873599,28.77047473,158.12,158.1,12.44]
[1749503873809,28.77047473,158.11,158.1,12.44]
[1749503874106,28.77047473,158.11,158.1,55.18]
[1749503874890,28.77047473,158.11,158.1,12.44]
[1749503875104,28.77047473,158.11,158.1,55.18]
[1749503875404,6.32351081,158.14,158.1,12.44]
[1749503875579,35.09398554,158.14,158.1,55.18]
[1749503875784,35.0936805,158.15,158.1,83.95047473]
[1749503876113,35.09278616,158.17,158.13,28.77047473]
[1749503876289,35.09278616,158.17,158.14,42.74]
[1749503876489,6.32231143,158.17,158.14,42.74]
[1749503876702,28.77047473,158.16,158.14,42.74]
[1749503877006,28.77047473,158.15,158.14,42.74]
[1749503877235,6.32279379,158.16,158.14,42.74]
[1749503877404,35.09326852,158.16,158.14,42.74]
[1749503877882,35.09238647,158.18,158.14,42.74]
[1749503878499,6.32191174,158.18,158.14,71.51047473]
[1749503878703,6.32191174,158.18,158.15,28.77047473]
[1749503878905,6.3215121,158.19,158.15,28.77047473]
[1749503879619,6.3215121,158.19,158.16,28.77047473]
[1749503880108,6.3215121,158.19,158.14,42.74]
[1749503880503,6.3215121,158.19,158.15,28.77047473]
[1749503880814,28.77047473,158.19,158.15,28.77047473]
[1749503880982,22.12129251,158.22,158.16,28.77047473]
[1749503881187,28.77047473,158.2,158.16,118.67047473]
[1749503881405,28.77047473,158.2,158.16,89.9]
[1749503881585,28.77047473,158.19,158.16,89.9]
[1749503881994,28.77047473,158.2,158.16,89.9]
[1749503882314,22.12129251,158.22,158.16,118.67047473]
[1749503882614,28.77047473,158.21,158.16,118.67047473]
[1749503882810,6.32111251,158.2,158.17,28.77047473]
[1749503883014,6.32073035,158.21,158.18,71.49047473]
[1749503883315,6.31991404,158.23,158.2,28.77047473]
[1749503883484,35.09038877,158.23,158.2,89.9]
[1749503884412,35.09038877,158.23,158.21,42.72]
[1749503885588,57.54094946,158.22,158.06,6.3687]
[1749503885793,28.77047473,158.13,158.08,28.77047473]
[1749503886018,26.14216157,158.18,158.09,42.72]
[1749503886315,28.77047473,158.12,158.1,42.72]
[1749503886491,28.77047473,158.11,158.07,12.44]
[1749503886691,26.14216157,158.18,158.08,42.72]
[1749503886890,26.14216157,158.18,158.08,71.49047473]
[1749503886891,22.12809002,158.17,158.08,71.49047473]
[1749503887192,28.77047473,158.12,158.08,71.49047473]
[1749503888498,22.12809002,158.17,158.08,42.72]
[1749503888698,28.77047473,158.13,158.08,42.72]
[1749503888905,28.77047473,158.12,158.08,71.49047473]
[1749503889101,28.77047473,158.12,158.08,42.72]
[1749503889300,28.77047473,158.1,158.08,42.72]
[1749503889517,28.77047473,158.09,158.07,12.44]
[1749503889820,28.77047473,158.09,158.08,42.7]
[1749503890406,28.77047473,158.09,158.07,12.44]
[1749503890602,28.77047473,158.09,158.08,42.7]
[1749503891205,35.09598551,158.09,158.08,42.7]
[1749503891710,35.09598551,158.09,158.07,55.16]
[1749503891902,6.32551078,158.09,158.07,55.16]
[1749503892102,35.09598551,158.09,158.07,55.16]
[1749503892526,30.37237473,158.1,158.07,55.16]
[1749503892736,7.92516838,158.15,158.09,28.77047473]
[1749503892902,7.92516838,158.15,158.12,28.77047473]
[1749503893103,12.59485442,158.19,158.14,28.77047473]
[1749503893339,1.5101,158.2,158.17,28.77047473]
[1749503893837,1.5101,158.2,158.16,28.77047473]
[1749503894143,30.28057473,158.2,158.16,29.27047473]
[1749503894632,30.28057473,158.2,158.16,0.5]
[1749503894798,36.60184191,158.2,158.16,29.27047473]
[1749503895234,36.60184191,158.2,158.16,0.5]
[1749503895731,7.83136718,158.2,158.16,0.5]
[1749503895914,28.77047473,158.19,158.16,0.5]
[1749503896228,28.77047473,158.17,158.16,0.5]
[1749503896602,28.77047473,158.17,158.15,42.7]
[1749503896903,28.77047473,158.18,158.15,42.7]
[1749503897228,6.32231143,158.17,158.15,42.7]
[1749503897420,1.5101,158.32,158.2,18.64964886]
[1749503897720,28.77047473,158.28,158.23,28.77047473]
[1749503898604,28.77047473,158.27,158.23,28.77047473]
[1749503899644,6.31800277,158.28,158.22,6.32024347]
[1749503899645,6.31800277,158.28,158.24,28.77047473]
[1749503899935,35.0884775,158.28,158.25,42.7]
[1749503900241,35.08759412,158.3,158.25,71.47047473]
[1749503900828,28.77047473,158.31,158.26,28.77047473]
[1749503901014,28.77047473,158.31,158.27,28.77047473]
[1749503901221,36.59703412,158.32,158.26,18.64964886]
[1749503901426,36.59703412,158.32,158.27,12.42]
[1749503902232,36.59703412,158.32,158.28,18.64964886]
[1749503902439,36.59703412,158.32,158.29,42.68]
[1749503902652,6.31588846,158.34,158.29,71.45047473]
[1749503902812,36.6072671,158.36,158.32,28.77047473]
[1749503903126,7.83679237,158.36,158.33,42.68]
[1749503903327,7.83679237,158.36,158.33,71.45047473]
[1749503903536,28.77047473,158.39,158.35,28.77047473]
[1749503903738,6.31313131,158.4,158.35,28.77047473]
[1749503904044,37.42359867,158.4,158.35,28.77047473]
[1749503904238,6.31313131,158.4,158.35,28.77047473]
[1749503904439,37.42358865,158.4,158.35,28.77047473]
[1749503904644,22.09595959,158.4,158.34,28.77047473]
[1749503904823,6.3143272,158.37,158.33,83.87047473]
[1749503905019,28.77047473,158.34,158.3,18.64964886]
[1749503905220,28.77047473,158.34,158.31,55.08]
[1749503905442,28.77047473,158.34,158.3,18.64964886]
[1749503905645,28.77047473,158.34,158.32,42.66]
[1749503905845,28.77047473,158.34,158.3,18.64964886]
[1749503906018,28.77047473,158.34,158.31,55.06]
[1749503906231,28.77047473,158.34,158.3,18.64964886]
[1749503906428,28.77047473,158.34,158.32,42.66]
[1749503906825,6.31592244,158.33,158.32,42.66]
[1749503907343,6.31472594,158.36,158.32,71.43047473]
[1749503907515,35.08520067,158.36,158.32,71.43047473]
[1749503907721,28.77047473,158.35,158.32,42.66]
[1749503907922,28.77047473,158.34,158.32,42.66]
[1749503908349,28.77047473,158.35,158.32,42.66]
[1749503908845,6.31352989,158.39,158.33,28.77047473]
[1749503909146,28.77047473,158.38,158.34,28.77047473]
[1749503909350,6.31352989,158.39,158.33,28.77047473]
[1749503909533,28.77047473,158.38,158.33,28.77047473]
[1749503909740,28.77047473,158.37,158.33,28.77047473]
[1749503910254,28.77047473,158.38,158.33,28.77047473]
[1749503910843,28.77047473,158.38,158.32,42.66]
[1749503910844,28.77047473,158.38,158.34,47.42012359]
[1749503911154,28.77047473,158.39,158.34,47.42012359]
[1749503911449,22.09658267,158.4,158.34,47.42012359]
[1749503911659,28.77047473,158.38,158.34,47.42012359]
[1749503911946,28.77047473,158.39,158.34,47.42012359]
[1749503912932,6.31392852,158.38,158.34,47.42012359]
[1749503913732,10.38809628,158.41,158.34,18.64964886]
[1749503914034,28.77047473,158.4,158.34,18.64964886]
[1749503914227,39.15857101,158.41,158.37,28.77047473]
[1749503914427,10.38809628,158.41,158.38,42.62]
[1749503915228,10.38809628,158.41,158.4,47.42012359]
[1749503915229,2.54356886,158.41,158.4,47.42012359]
[1749503915849,2.54356886,158.41,158.38,42.62]
[1749503916033,8.85637972,158.41,158.38,71.39047473]
[1749503916238,2.54356886,158.41,158.39,47.42012359]
[1749503916546,37.62679825,158.41,158.38,42.62]
[1749503916751,28.77047473,158.39,158.38,42.62]
[1749503916942,35.08400462,158.39,158.38,42.62]
[1749503917648,6.31352989,158.39,158.38,42.62]
[1749503919459,6.31326105,158.4,158.38,42.62]
[1749503919961,2.54356886,158.41,158.39,28.77047473]
[1749503920138,8.85646673,158.41,158.39,28.77047473]
[1749503920454,8.85646673,158.41,158.4,28.77047473]
[1749503920657,2.54356886,158.41,158.4,28.77047473]
[1749503921041,2.54356886,158.41,158.4,47.42012359]
[1749503921238,2.54356886,158.41,158.4,18.64964886]
[1749503921433,2.54356886,158.41,158.4,82.52199832]
[1749503921656,0.8600173,158.43,158.42,0.28432314]
[1749503921857,6.30880306,158.51,158.44,0.28432314]
[1749503922155,28.77047473,158.51,158.42,55.0]
[1749503922335,6.30846687,158.52,158.48,28.77047473]
[1749503922533,6.0835,158.59,158.48,102.42012359]
[1749503922751,6.30705143,158.56,158.48,102.70444673]
[1749503923055,36.7230368,158.57,158.48,108.5143912]
[1749503923246,30.41657473,158.57,158.48,114.6100912]
[1749503923448,1.6461,158.57,158.48,112.59883226]
[1749503923755,6.30726354,158.55,158.48,100.19318779]
[1749503924133,15.76257319,158.61,158.51,26.0]
[1749503924338,28.77047473,158.59,158.55,28.77047473]
[1749503924537,28.77047473,158.59,158.56,42.58]
[1749503924833,15.76257319,158.61,158.57,28.77047473]
[1749503925034,6.3039778,158.63,158.58,28.77047473]
[1749503925245,28.77047473,158.6,158.56,71.35047473]
[1749503925447,28.77047473,158.6,158.56,42.58]
[1749503926258,28.77047473,158.57,158.56,42.58]
[1749503926454,79.58381136,158.63,158.56,71.35047473]
[1749503926756,35.07445253,158.63,158.58,28.77047473]
[1749503927056,6.3039778,158.63,158.58,28.77047473]
[1749503927257,1.5356,158.68,158.56,48.88641678]
[1749503927552,28.77047473,158.63,158.58,28.77047473]
[1749503927752,15.75665162,158.67,158.6,28.77047473]
[1749503927960,15.75665162,158.67,158.61,42.56]
[1749503928140,28.77047473,158.62,158.61,42.56]
[1749503928338,41.75665162,158.67,158.61,42.56]
[1749503928542,28.77047473,158.63,158.61,42.56]
[1749503928756,15.75665162,158.67,158.61,42.56]
[1749503928957,28.77047473,158.63,158.61,42.56]
[1749503929138,22.0597504,158.66,158.62,42.56]
[1749503929335,28.77047473,158.63,158.62,42.56]
[1749503929541,22.0597504,158.66,158.6,42.56]
[1749503929542,6.277,158.64,158.6,42.56]
[1749503930066,28.77047473,158.61,158.6,42.56]
[1749503930270,28.77047473,158.62,158.6,42.56]
[1749503930439,6.277,158.64,158.57,28.77047473]
[1749503930633,28.77047473,158.62,158.6,42.54]
[1749503931357,28.77047473,158.61,158.55,28.77047473]
[1749503931571,28.77047473,158.59,158.56,42.54]
[1749503932048,6.3039778,158.63,158.49,6.0957]
[1749503932049,28.77047473,158.57,158.49,6.0957]
[1749503932247,28.77047473,158.54,158.49,28.77047473]
[1749503932448,28.77047473,158.53,158.5,42.54]
[1749503932667,35.07875443,158.53,158.5,43.04]
[1749503932846,28.77047473,158.52,158.5,0.5]
[1749503933047,28.77047473,158.52,158.51,42.52]
[1749503934459,28.77047473,158.52,158.48,12.36]
[1749503934774,6.3082797,158.53,158.49,42.52]
[1749503934775,35.07922496,158.51,158.49,42.52]
[1749503934961,28.77047473,158.5,158.49,42.52]
[1749503935159,35.07922496,158.51,158.49,42.52]
[1749503935348,51.85190611,158.51,158.49,42.52]
[1749503935749,45.54315588,158.5,158.46,45.54315588]
[1749503935950,6.30875023,158.51,158.44,18.64964886]
[1749503935951,45.54315588,158.49,158.47,42.52]
[1749503936149,45.54315588,158.48,158.43,94.28315588]
[1749503936443,45.54315588,158.49,158.44,45.54315588]
[1749503936641,6.30994447,158.48,158.45,42.52]
[1749503936843,6.30994447,158.48,158.46,42.52]
[1749503937785,6.30994447,158.48,158.47,0.5]
[1749503938062,51.85310035,158.48,158.47,43.02]
[1749503938662,51.85310035,158.48,158.47,42.52]
[1749503938869,51.85310035,158.48,158.46,42.52]
[1749503939054,45.54315588,158.47,158.46,42.52]
[1749503939567,6.30967975,158.49,158.46,42.52]
[1749503940545,51.85283563,158.49,158.46,42.52]
[1749503941079,45.54315588,158.48,158.46,42.52]
[1749503942683,6.31074088,158.46,158.43,12.36]
[1749503942864,6.31074088,158.46,158.38,57.90315588]
[1749503943060,45.54315588,158.41,158.38,12.36]